Workbook

Sheet Lodging Decision Tool
A2: . . . . . . . . . . . . . . . . . . . . . . . . . . . . . . . . . . . . . . . . . . . . . . . . . .
A3: PGR Lodging Management Decision Tool for Wheat | H3: Printed: | I3: =TODAY() -> 2025-04-22
I4: Version 1.0
C5: *** Enter/select changes to items in BLUE only ***
A7: Step #1 - Yield and Risk Factors
B8: 1.1 | C8: Target Wheat Yield (bu/acre) = | F8: 80 | G8: bu/ac | J8: For more information:
B9: 1.2 | C9: Cultivar Lodging Rating | F9: VG
B10: 1.3 | C10: Nitrogen Fertilizer Applied | F10: Recommeded rate: 125 to 145 lb/acre
B11: 1.4 | C11: Seeding Rate | F11: Medium: 23-30 plants/ft2 (1.75 to 1.9 bu/acre)
B12: 1.5 | C12: Fungicide Applied | F12: Yes
B14: = | C14: Lodging Risk Factor (0 to 1 scale) = | G14: ='Yield & Risk Factors'!J32 -> 0.31
H16: Range
A17: Step #2 - Yield Loss From Lodging | H17: Low | I17: High
C18: Potential Yield Loss Due to Lodging | H18: 0.1 | I18: 0.3
B19: x | C19: Target Yield Lodging Yield Risk Factor | H19: =G14 -> 0.31 | I19: =G14 -> 0.31
B20: = | C20: Estimated Yield Loss From Lodging | H20: =SUM(H18*H19) -> 0.031 | I20: =SUM(I18*I19) -> 0.093
B21: x | C21: Target Yield (bu/acre) | H21: =F8 -> 80 | I21: =F8 -> 80
B22: = | C22: Est. Yield Loss From Lodging (bu/acre) | H22: =ROUND(H20*H21,1) -> 2.5 | I22: =ROUND(I20*I21,1) -> 7.4
H24: Range
A25: Step #3 - Revenue Loss Due to Lodging | H25: Low | I25: High
C26: Est. Market Price ($/bu) | F26: 8
B27: x | C27: Est. Yield Loss From Lodging (bu/acre) | H27: =H22 -> 2.5 | I27: =I22 -> 7.4
B28: = | C28: Est. Loss From Lodging ($/acre) | H28: =ROUND($F$26*H22,0) -> 20 | I28: =ROUND($F$26*I22,0) -> 59
A30: Step #4 - Lodging Management Cost
C31: PGR Cost ($/acre) | F31: 18.5
B32: + | C32: Application Cost ($/acre) | F32: 11
B33: = | C33: Total Cost ($/acre) | F33: =SUM(F31:F32) -> 29.5
A35: Lodging Management Profitability Analysis
H36: Range
H37: Low | I37: High
C38: Est. Loss From Lodging ($/acre) | H38: =H28 -> 20 | I38: =I28 -> 59
B39: - | C39: Total Cost ($/acre) | H39: =ROUND($F$33,0) -> 30 | I39: =ROUND($F$33,0) -> 30
B40: = | C40: Potential Return ($/acre) | H40: =SUM(H38-H39) -> -10 | I40: =SUM(I38-I39) -> 29
B42: = | C42: Potential Return on Investment (ROI) | H42: =SUM(H40/H39) -> -0.3333333333 | I42: =SUM(I40/I39) -> 0.9666666667
A44: ="Low Range of Yield Loss ("&H18*100&"% or "&$H$22&" bu/ac) -" -> Low Range of Yield Loss (10% or 2.5 bu/ac) - | G44: =IF($H$42<-5%,$A$71,IF(H42<5%,$A$72,$A$73)) -> Likely Not Beneficial to Spray
A46: ="High Range of Yield Loss ("&I18*100&"% or "&$I$22&" bu/ac) -" -> High Range of Yield Loss (30% or 7.4 bu/ac) - | G46: =IF($I$42<-5%,$A$71,IF(I42<5%,$A$72,$A$73)) -> Likely Beneficial to Spray
A48: Breakeven Analysis (compared to untreated)
A50: Breakeven Yield Loss = | E50: Total Cost of Treatment
E51: Price per bushel
D53: =" = $"&TEXT($F$33,"0.00")&" cost / $"&TEXT($F$26,"0.00")&" price = "&ROUND(($F$33)/$F$26,1)&" bu/acre or "&TEXT((($F$33/$F$26)/$G$14/$F$8)*100,"0.0")&"% yield loss" -> = $29.50 cost / $8.00 price = 3.7 bu/acre or 14.9% yield loss
A55: Breakeven Yield Loss = | E55: Total Cost of Treatment + | G55: 0.2 | H55: producer profit margin
A56: (with producer profit margin) | E56: Price per bushel
D58: =" = $"&TEXT($F$33*(1+G55),"0.00")&" cost / $"&TEXT($F$26,"0.00")&" price = "&ROUND(($F$33*(1+G55))/$F$26,1)&" bu/acre or "&TEXT((($F$33*(1+G55)/$F$26)/$G$14/$F$8)*100,"0.0")&"% yield loss" -> = $35.40 cost / $8.00 price = 4.4 bu/acre or 17.8% yield loss
A60: Note: This budget is only a guide and is not intended as an in-depth study of cereal lodging management. Interpretation and use of this information is the responsibility of the user. If you need help with a budget, contact a Farm Management Specialist.
J63: April, 2025
A71: Likely Not Beneficial to Spray
A72: Uncertain if Beneficial to Spray
A73: Likely Beneficial to Spray

Sheet Yield & Risk Factors
A1: Yield and Risk Factors
E3: Relative | G3: Assigned | J3: Risk
A4: Cultivar Lodging Rating | E4: Rating | G4: Weight | J4: Factor
N5: (select rating)
C6: Poor | E6: 1 | F6: x | G6: 0.375 | H6: =IF('Lodging Decision Tool'!F9=N6,E6,IF('Lodging Decision Tool'!F9=N7,E7,IF('Lodging Decision Tool'!F9=N8,E8,E9))) -> 0 | I6: = | J6: =H6*G6 -> 0 | N6: P
C7: Fair | E7: 0.7 | N7: F
C8: Good | E8: 0.3 | N8: G
C9: Very Good | E9: 0 | N9: VG
A11: Nitrogen Fertilizer Applied
B12: soil test (lb/ac) | C12: 35 | N12: (select rate)
C13: =N13 -> Higher rate: More than 145 lb/acre | E13: 1 | F13: x | G13: 0.25 | H13: =IF('Lodging Decision Tool'!F10=N13,E13,IF('Lodging Decision Tool'!F10=N14,E14,E15)) -> 0.5 | I13: = | J13: =H13*G13 -> 0.125 | N13: ="Higher rate: More than "&CEILING((2.25*'Lodging Decision Tool'!F8)-C12,5)&" lb/acre" -> Higher rate: More than 145 lb/acre
C14: =N14 -> Recommeded rate: 125 to 145 lb/acre | E14: 0.5 | N14: ="Recommeded rate: "&CEILING((2.25*'Lodging Decision Tool'!F8)-C12,5)-20&" to "&CEILING((2.25*'Lodging Decision Tool'!F8)-C12,5)&" lb/acre" -> Recommeded rate: 125 to 145 lb/acre
C15: =N15 -> Lower rate: Less than 125 lb/acre | E15: 0 | N15: ="Lower rate: Less than "&CEILING((2.25*'Lodging Decision Tool'!F8)-C12,5)-20&" lb/acre" -> Lower rate: Less than 125 lb/acre
A17: Target Wheat Yield (bu)
B18: more than or equal to | C18: 80 | E18: 1 | F18: x | G18: 0.125 | H18: =ROUND(1-SUM(C18-'Lodging Decision Tool'!F8)/(C18-C19),1) -> 1 | I18: = | J18: =H18*G18 -> 0.125
B19: less than or equal to | C19: 60 | E19: 0
A21: Seeding Rate
N22: (select rate)
C23: =N23 -> High: >30 plants/ft2 (2.0 or higher bu/acre) | E23: 1 | F23: x | G23: 0.125 | H23: =IF('Lodging Decision Tool'!F11=N23,E23,IF('Lodging Decision Tool'!F11=N24,E24,E25)) -> 0.5 | I23: = | J23: =H23*G23 -> 0.0625 | N23: High: >30 plants/ft2 (2.0 or higher bu/acre)
C24: =N24 -> Medium: 23-30 plants/ft2 (1.75 to 1.9 bu/acre) | E24: 0.5 | N24: Medium: 23-30 plants/ft2 (1.75 to 1.9 bu/acre)
C25: Low: <23 plants/ft2 (1.7 or lower bu/acre) | E25: 0 | N25: Low: <23 plants/ft2 (1.7 or lower bu/acre)
A27: Fungicide Application
N28: (select)
C29: =N29 -> Yes | E29: 0 | F29: x | G29: 0.125 | H29: =IF('Lodging Decision Tool'!F12=N29,E29,E30) -> 0 | I29: = | J29: =H29*G29 -> 0 | N29: Yes
C30: =N30 -> No | E30: 1 | N30: No
E32: TOTAL | G32: =SUM(G6+G13+G18+G23+G29) -> 1 | J32: =ROUND((J6+J13+J18+J23+J29),2) -> 0.31
